bitfinex/quotes_ETHUSD_20251031
["timestamp","ask_amount","ask_price","bid_price","bid_amount"]
[1761940011194,0.1906,3906.4,3905.6,8.55808481]
[1761940011395,0.1906,3906.4,3905.6,7.95888081]
[1761940011737,0.5502,3905.7,3904.7,0.405504]
[1761940011945,2.56042605,3905.6,3904.7,0.405504]
[1761940012091,0.5502,3905.7,3904.4,0.405504]
[1761940012287,0.4844,3905.6,3904.4,0.405504]
[1761940012691,0.4844,3905.6,3904.5,0.02561147]
[1761940012991,2.56056989,3905.4,3904.4,1.805184]
[1761940013192,0.4844,3905.6,3904.5,2.56112122]
[1761940013498,0.4844,3905.5,3904.6,0.02561081]
[1761940013740,0.4844,3905.5,3904.4,2.96670033]
[1761940013943,0.4844,3905.5,3904.5,0.02561147]
[1761940014245,0.005,3905.7,3904.5,0.02561147]
[1761940014419,2.56042605,3905.6,3904.5,0.43111547]
[1761940014622,3.04977518,3905.7,3904.5,0.43111547]
[1761940014815,3.04977518,3905.7,3904.7,2.56100319]
[1761940015010,3.04977518,3905.7,3904.5,0.43111547]
[1761940015011,0.4894,3905.7,3904.8,0.0256095]
[1761940015654,0.4894,3905.7,3904.7,0.860104]
[1761940015655,0.005,3905.7,3904.7,0.860104]
[1761940015954,0.005,3905.7,3905.2,2.56068073]
[1761940016115,0.005,3905.7,3904.8,1.39968]
[1761940016310,0.005,3905.7,3904.9,0.43111285]
[1761940016648,0.4844,3905.6,3905.0,0.02560819]
[1761940016843,0.4844,3905.6,3904.5,0.405504]
[1761940016844,0.005,3905.7,3904.6,0.43111481]
[1761940017218,0.005,3905.7,3905.6,0.599204]
[1761940017489,0.005,3905.7,3905.6,3.63663005]
[1761940017746,0.005,3905.7,3905.6,4.09123005]
[1761940018123,0.005,3905.7,3905.6,4.04123005]
[1761940018309,0.005,3905.7,3905.6,5.46651431]
[1761940018514,0.005,3905.7,3905.6,11.63950325]
[1761940018737,0.005,3906.7,3906.6,0.405504]
[1761940019043,0.005,3906.7,3906.2,0.405504]
[1761940019245,0.4894,3906.7,3905.6,0.1437]
[1761940019418,3.04910512,3906.7,3906.6,0.1272]
[1761940019618,0.4894,3906.7,3904.9,0.1937]
[1761940019841,0.1921,3905.8,3904.9,0.1937]
[1761940020057,0.1921,3905.8,3905.7,0.128]
[1761940020211,0.005,3906.7,3905.8,1.805184]
[1761940020410,0.005,3906.7,3906.6,3.76317464]
[1761940020639,0.005,3906.7,3906.6,5.18845234]
[1761940021034,0.005,3906.7,3906.6,0.1272]
[1761940021235,0.2601,3906.7,3906.6,0.1272]
[1761940021444,0.7422,3906.7,3906.6,0.1272]
[1761940021951,3.30190512,3906.7,3906.6,0.1272]
[1761940022137,3.30190512,3906.7,3905.5,2.56047832]
[1761940022138,0.7422,3906.7,3905.5,2.56047832]
[1761940022342,2.55989348,3906.5,3906.4,0.1272]
[1761940022559,0.4821,3906.6,3906.4,0.1272]
[1761940022713,0.2601,3906.7,3905.1,0.1937]
[1761940022714,0.005,3906.7,3906.5,0.15279836]
[1761940023038,2.56475276,3906.7,3906.5,0.1272]
[1761940023238,0.7372,3906.6,3906.5,0.1272]
[1761940023564,3.29697064,3906.6,3906.5,0.1272]
[1761940023852,0.7372,3906.6,3905.1,1.39968]
[1761940024013,2.55996723,3906.3,3906.2,0.128]
[1761940024217,3.04193617,3906.5,3903.9,2.56154051]
[1761940024415,0.005,3906.7,3904.1,0.005]
[1761940024416,2.56059649,3905.4,3904.1,0.005]
[1761940024613,0.4844,3906.4,3904.1,0.005]
[1761940024614,0.4844,3906.4,3904.2,0.02561344]
[1761940024915,0.1921,3905.3,3904.1,2.56636268]
[1761940025131,2.56074809,3905.2,3904.2,0.02561344]
[1761940025372,0.6765,3905.3,3904.2,0.02561344]
[1761940025573,2.56095821,3904.8,3904.1,0.005]
[1761940025884,0.1921,3904.2,3904.1,0.005]
[1761940026047,0.4844,3905.2,3904.2,3.96097084]
[1761940026048,0.1921,3904.9,3904.2,3.96097084]
[1761940026270,0.1921,3904.9,3904.3,0.02561278]
[1761940026573,0.4844,3904.8,3904.1,0.005]
[1761940027235,2.56115914,3904.5,3904.1,0.005]
[1761940027874,3.04535657,3904.8,3904.1,0.005]
[1761940028179,0.4844,3904.8,3904.1,0.005]
[1761940028472,3.04541918,3904.7,3904.1,0.005]
[1761940028784,0.4844,3904.7,3904.1,0.005]
[1761940028960,3.04542055,3904.7,3904.1,0.005]
[1761940029162,0.1921,3904.9,3904.2,0.02561344]
[1761940029468,0.1921,3905.3,3904.5,2.56111487]
[1761940029671,0.1921,3905.3,3904.6,0.02561081]
[1761940029969,2.56070802,3905.2,3904.6,0.02561081]
[1761940030174,0.4472,3904.7,3904.1,0.005]
[1761940030375,0.4844,3905.2,3904.1,0.1987]
[1761940030575,3.04509548,3905.2,3904.3,2.56121986]
[1761940030736,0.4844,3905.2,3904.4,0.02561212]
[1761940030936,0.1921,3905.3,3904.5,2.56114739]
[1761940031181,0.1921,3905.3,3904.7,2.56096844]
[1761940031770,0.4472,3904.8,3904.3,2.56122719]
[1761940032070,0.4472,3904.8,3904.1,2.5663981]
[1761940032234,0.4472,3904.8,3904.1,0.005]
[1761940032435,0.4821,3904.7,3904.1,0.005]
[1761940032912,2.56108706,3904.6,3904.1,0.005]
[1761940033275,0.2551,3904.2,3904.1,0.005]
[1761940033519,2.81644419,3904.2,3904.1,0.005]
[1761940033814,3.88475035,3904.2,3904.1,0.005]
[1761940034827,2.56167225,3903.7,3903.6,0.002]
[1761940035010,3.05087225,3903.7,3903.6,0.002]
[1761940035919,3.17887225,3903.7,3903.6,0.002]
[1761940036104,0.57884612,3903.7,3903.6,0.002]
[1761940036307,0.0048,3903.7,3903.6,0.002]
[1761940036832,0.4997,3904.2,3903.6,0.002]
[1761940037187,3.06106046,3904.2,3904.0,0.128]
[1761940037390,0.4997,3904.2,3904.0,0.128]
[1761940037593,0.7371,3904.1,3904.0,0.128]
[1761940037790,1.06694741,3904.1,3904.0,0.128]
[1761940037998,3.6283572,3904.1,3904.0,0.128]
[1761940038173,3.29850979,3904.1,3904.0,0.128]
[1761940038788,2.56167225,3903.7,3903.6,0.13]
[1761940039108,0.76312611,3903.7,3903.6,0.13]
[1761940039321,0.2508,3903.7,3903.6,0.13]
[1761940039522,3.29887225,3903.7,3903.6,0.13]
[1761940040141,0.2508,3903.7,3903.6,0.13]
[1761940040328,0.7372,3903.7,3903.6,0.13]
[1761940040529,3.29887225,3903.7,3903.6,0.13]
[1761940040733,1.32324227,3903.7,3903.6,0.13]
[1761940040958,3.29887225,3903.7,3903.6,0.13]
[1761940041247,3.29887225,3903.7,3903.6,0.002]
[1761940041456,0.7372,3903.7,3903.6,0.002]
[1761940041765,3.29887225,3903.7,3903.6,0.002]
[1761940041918,0.7372,3903.7,3903.6,0.002]
[1761940042118,1.07987834,3903.7,3903.6,0.002]
[1761940042319,0.7372,3903.7,3903.6,0.002]
[1761940042522,0.128,3904.0,3903.6,0.002]
[1761940042739,0.4887,3904.5,3903.6,0.002]
[1761940042955,0.1484438,3904.5,3904.0,2.56147328]
[1761940043339,0.1484438,3904.5,3903.6,0.002]
[1761940043340,0.4887,3904.4,3904.1,2.56140711]
[1761940043648,0.59396642,3904.8,3903.6,0.002]
[1761940043649,0.1921,3904.8,3903.6,0.002]
[1761940043865,2.56114985,3904.5,3903.6,0.002]
[1761940044010,0.4887,3904.4,3903.6,2.56373741]
[1761940044353,0.30498499,3904.3,3903.6,0.002]
[1761940044554,0.30498499,3904.3,3903.7,2.56162976]
[1761940044719,0.30498499,3904.3,3903.9,2.56148723]
[1761940044922,0.4887,3904.4,3903.8,2.56158583]
[1761940045152,0.4887,3904.4,3903.6,0.002]
[1761940045153,3.04992509,3904.4,3903.7,2.56167129]
[1761940045365,0.4887,3904.4,3903.6,2.56371561]
[1761940045664,0.4887,3904.3,3903.6,0.002]
[1761940045973,0.30499272,3904.2,3903.8,2.56155351]
[1761940046124,0.4887,3904.3,3903.8,2.56155351]
[1761940046324,0.4887,3904.3,3903.6,2.56369285]
[1761940046724,0.4887,3904.3,3903.8,2.56156379]
[1761940047133,3.0499828,3904.3,3903.6,2.56372805]
[1761940047359,3.0499828,3904.3,3903.6,2.56373752]
[1761940047527,0.2508,3903.7,3903.6,0.002]
[1761940047732,0.7372,3903.7,3903.6,0.002]
[1761940047985,0.2508,3903.7,3903.6,0.002]
[1761940048632,0.7372,3903.7,3903.6,0.002]
[1761940049485,3.29887225,3903.7,3903.6,0.002]
[1761940049775,3.62875948,3903.7,3903.6,0.002]
[1761940049975,1.06708723,3903.7,3903.6,0.002]
[1761940050277,3.62875948,3903.7,3903.6,0.002]
[1761940052556,1.06708723,3903.7,3903.6,0.002]
[1761940052870,0.2508,3903.7,3903.6,0.002]
[1761940053042,0.7372,3903.7,3903.6,0.002]
[1761940053241,3.29887225,3903.7,3903.6,0.002]
[1761940053838,0.7372,3903.7,3903.6,0.002]
[1761940054455,2.68946506,3904.1,3903.6,0.002]
[1761940054656,0.31758651,3904.0,3903.6,0.002]
[1761940054881,2.56166886,3903.8,3903.6,0.002]
[1761940055088,2.56155224,3903.9,3903.6,0.002]
[1761940055296,2.56140061,3904.2,3903.6,0.002]
[1761940055599,2.56140061,3904.2,3903.7,0.128]
[1761940055794,0.25614006,3904.1,3903.7,0.128]
[1761940055980,2.81756316,3904.1,3903.7,0.128]
[1761940056181,0.2508,3903.8,3903.7,0.128]
[1761940056494,0.4887,3904.1,3903.7,0.128]
[1761940056797,0.128,3904.3,3903.7,0.128]
[1761940056956,2.56135923,3904.2,3903.7,0.128]
[1761940057157,2.56145436,3904.1,3903.7,0.128]
[1761940057397,0.4887,3904.1,3903.7,0.128]
[1761940057599,2.56139503,3904.2,3903.7,0.128]
[1761940057799,0.52506138,3904.1,3903.7,0.128]
[1761940058098,3.08648401,3904.1,3903.7,0.128]
[1761940058597,0.52506138,3904.1,3903.7,0.128]
[1761940058965,3.05009357,3904.2,3903.7,0.128]
[1761940059168,2.81240663,3903.8,3903.7,0.128]
[1761940059367,0.2508,3903.8,3903.6,0.002]
[1761940059572,0.2508,3903.7,3903.6,0.002]
[1761940059786,2.68945702,3904.1,3903.6,0.002]
[1761940060106,2.56129115,3904.3,3903.6,0.002]
[1761940060107,2.81247225,3903.7,3903.6,0.002]
[1761940060554,3.29887225,3903.7,3903.6,0.002]
[1761940061379,0.2508,3903.7,3903.6,0.002]
[1761940061601,2.81247225,3903.7,3903.6,0.002]
[1761940061911,3.29887225,3903.7,3903.6,0.002]
[1761940062059,3.39851545,3903.7,3903.6,0.002]
[1761940063206,3.88491545,3903.7,3903.6,0.002]
[1761940063974,0.001,3904.2,3903.6,2.56372229]
[1761940064182,0.001,3904.2,3904.1,3.20910979]
[1761940064366,0.001,3904.2,3903.8,2.56155373]
[1761940064566,0.001,3904.2,3903.7,0.4894]
[1761940064881,0.001,3904.2,3904.0,2.56142256]
[1761940065214,0.001,3904.2,3903.8,2.56160663]
[1761940065215,0.001,3904.2,3904.1,2.56140979]
[1761940065596,0.001,3904.2,3903.9,2.56152654]
[1761940065794,0.001,3904.2,3903.9,2.56154102]
[1761940066110,0.001,3904.2,3904.1,2.56140979]
[1761940066466,0.001,3904.2,3903.9,0.4894]
[1761940066662,0.001,3904.2,3903.7,2.56167225]
[1761940066877,0.001,3904.2,3904.1,2.56140979]
[1761940067410,0.001,3904.2,3904.1,3.24340979]
[1761940067615,0.001,3904.2,3904.1,4.07587231]
[1761940068082,0.001,3904.2,3904.1,4.1014864]
[1761940068402,0.001,3904.2,3904.1,4.07587231]
[1761940069273,0.001,3904.2,3904.1,4.1014864]
[1761940069515,0.001,3904.2,3904.1,5.9066704]
[1761940069692,0.001,3904.2,3904.1,5.88105631]
[1761940070122,0.001,3904.2,3904.1,6.00905631]
[1761940072369,0.001,3904.6,3904.5,10.15942059]
[1761940072708,0.001,3904.6,3904.5,12.96790786]
[1761940072909,0.006,3905.7,3905.6,2.56042605]
[1761940073081,0.006,3905.7,3905.6,3.24242605]
[1761940073403,0.006,3905.7,3905.6,3.70202605]
[1761940073606,0.006,3905.7,3905.6,3.24242605]
[1761940074178,0.006,3905.7,3905.6,3.70202605]
[1761940074369,0.006,3905.7,3905.6,4.04188302]
[1761940075106,0.006,3905.7,3905.6,5.46716728]
[1761940075298,0.006,3905.7,3905.6,5.44156302]
[1761940076011,0.006,3905.7,3905.6,4.98196302]
[1761940076309,0.006,3905.7,3905.6,4.64210605]
[1761940076615,0.006,3905.7,3905.1,0.1912]
[1761940076787,0.2822,3905.7,3905.1,0.1912]
[1761940076993,0.2822,3905.7,3905.5,2.56042902]
[1761940077175,0.2822,3905.7,3905.1,0.1912]
[1761940077380,0.006,3905.7,3905.6,3.05122605]
[1761940078111,0.006,3905.7,3905.6,2.56042605]
[1761940078517,0.006,3905.7,3905.6,3.05122605]
[1761940078712,0.006,3905.7,3905.6,2.56042605]
[1761940080638,0.006,3905.7,3905.6,3.05122605]
[1761940080810,0.006,3905.7,3905.6,3.51082605]
[1761940081008,0.2822,3905.7,3905.6,2.56042605]
[1761940081338,0.2822,3905.7,3903.9,0.4596]
[1761940081339,2.56060738,3905.4,3903.9,0.4596]
[1761940081647,3.03883683,3905.3,3904.1,0.1932]
[1761940081848,2.56099703,3904.8,3904.1,0.002]
[1761940082148,0.51217509,3904.8,3904.2,2.56129281]
[1761940082354,0.1865,3904.7,3904.4,0.128]
[1761940082707,0.2762,3904.5,3904.4,0.128]
[1761940083352,0.7524,3904.5,3904.1,0.002]
[1761940083552,2.56129399,3904.3,3904.2,0.128]
[1761940083722,2.56435291,3904.2,3904.0,0.128]
[1761940083910,0.4782,3904.2,3904.0,0.128]
[1761940084254,0.7541,3904.1,3904.0,0.128]
[1761940084609,2.5614754,3904.0,3903.9,0.37246307]
[1761940084834,3.68635708,3904.0,3903.9,0.37246307]
[1761940085147,3.68635708,3904.0,3903.7,0.002]
[1761940085148,2.56160663,3903.8,3903.7,0.002]
[1761940085710,3.31310663,3903.8,3903.7,0.002]
[1761940088547,3.31310663,3903.8,3902.1,0.005]
[1761940088548,2.56265696,3902.2,3902.1,0.005]
[1761940088711,3.01485696,3902.2,3902.1,0.005]
[1761940088910,3.17715696,3902.2,3902.1,0.005]
[1761940089912,0.6145,3902.2,3902.1,0.005]
[1761940090108,3.75111843,3902.2,3902.1,0.005]
[1761940092537,1.18846147,3902.2,3902.1,0.005]
[1761940092846,0.4522,3902.2,3902.1,0.005]
[1761940093413,3.01485696,3902.2,3902.1,0.005]
[1761940094051,0.40204614,3903.3,3902.1,0.4958]
[1761940094354,2.56206605,3903.1,3902.1,0.687]
[1761940094551,0.4782,3903.2,3902.1,0.687]
[1761940094552,0.4782,3903.2,3902.2,2.56260102]
[1761940095045,2.56217512,3903.0,3902.2,2.56260102]
[1761940095347,2.56221395,3902.9,3902.1,2.75890763]
[1761940095552,0.560248,3902.9,3902.3,2.56252773]
[1761940095755,0.4782,3903.2,3902.1,0.1962]
[1761940095961,2.56211508,3903.1,3902.4,2.56251061]
[1761940096161,2.56211508,3903.1,3902.1,2.75889908]
[1761940096162,0.4782,3903.2,3902.5,2.56245348]
[1761940096313,3.04020891,3903.2,3902.5,2.56245348]
[1761940096517,3.60041033,3903.2,3902.5,2.56245348]
[1761940096759,2.5620678,3903.1,3902.1,0.647]
[1761940097061,1.03840142,3903.2,3902.2,2.56264456]
[1761940097062,2.5622197,3902.9,3902.2,2.56264456]
[1761940097564,0.1488,3902.3,3902.1,0.005]
[1761940097915,2.56725696,3902.2,3902.1,0.005]
[1761940098263,2.56725696,3902.2,3902.1,0.007]
[1761940098264,3.03315696,3902.2,3902.1,0.007]
[1761940098429,0.0046,3902.2,3902.1,0.007]
[1761940098769,0.4841,3902.8,3902.1,0.007]
[1761940098977,2.69335696,3902.2,3902.1,0.007]
[1761940099112,3.21894659,3902.2,3902.1,0.007]
[1761940099317,0.65358963,3902.2,3902.1,0.007]
[1761940099631,0.128,3902.8,3902.1,3.18707727]
[1761940099832,2.69029795,3902.8,3902.1,3.18710115]
[1761940100718,0.128,3902.8,3902.2,2.56261472]
[1761940100932,0.128,3902.8,3902.1,2.69770426]
[1761940101149,2.69027208,3902.8,3902.1,2.69770426]
[1761940101328,2.56246227,3902.5,3902.1,0.135]
[1761940101533,0.4841,3902.7,3902.1,0.135]
[1761940101727,0.128,3902.8,3902.2,2.56265429]
[1761940101963,2.6902635,3902.8,3902.1,2.88540006]
[1761940102164,2.83136584,3902.7,3902.1,2.88540006]
[1761940102455,2.83136584,3902.7,3902.1,0.135]
[1761940102456,2.56244316,3902.6,3902.1,0.135]
[1761940102752,2.83137462,3902.7,3902.1,2.88541896]
[1761940103252,2.83137462,3902.7,3902.1,0.3227]
[1761940103454,0.55215726,3902.6,3902.1,0.3227]
[1761940103755,0.55215726,3902.6,3902.1,2.88541592]
[1761940104129,2.56233497,3902.7,3902.1,2.88541592]
[1761940104530,2.69335696,3902.2,3902.1,0.007]
[1761940105473,3.30185696,3902.2,3902.1,0.007]
[1761940105669,3.88829584,3902.2,3902.1,0.007]
[1761940107177,3.76029584,3902.2,3902.1,0.007]
[1761940107825,2.56291967,3901.8,3901.7,0.002]
[1761940107969,2.56771967,3901.8,3901.7,0.002]
[1761940108155,3.63139541,3901.8,3901.7,0.002]
[1761940108347,5.03107541,3901.8,3901.7,0.002]
[1761940108542,5.43657941,3901.8,3901.7,0.002]
[1761940110240,3.63139541,3901.8,3901.7,0.002]
[1761940111072,5.43657941,3901.8,3901.7,0.002]
[1761940111598,5.83872486,3901.8,3901.7,0.002]
[1761940113284,6.3896098,3901.8,3901.7,0.002]
[1761940113795,5.9841058,3901.8,3901.7,0.002]
[1761940114172,6.3896098,3901.8,3901.7,0.002]
[1761940115504,6.3896098,3901.8,3901.1,0.005]
[1761940115505,4.36816936,3901.7,3901.6,1e-08]
[1761940115801,5.76493509,3901.7,3901.6,1e-08]
[1761940116000,6.25293509,3901.7,3901.6,1e-08]
[1761940116300,20.42670909,3901.7,3901.6,1e-08]
[1761940116476,12.93923509,3901.7,3901.6,1e-08]
[1761940116876,2.97371785,3901.2,3901.1,1e-08]
[1761940117404,3.45781785,3901.2,3901.1,1e-08]
[1761940121808,5.25972974,3901.2,3901.1,1e-08]
[1761940122011,5.81028719,3901.2,3901.1,1e-08]
[1761940122309,5.25972974,3901.2,3901.1,1e-08]
[1761940122507,6.52182856,3901.2,3901.1,1e-08]
[1761940123570,5.97141053,3901.2,3901.1,1e-08]
[1761940125902,6.37351069,3901.2,3901.1,1e-08]
[1761940126382,6.92404417,3901.2,3901.1,1e-08]
[1761940127820,4.07932669,3901.2,3901.1,1e-08]
[1761940128020,4.15912653,3901.2,3901.1,1e-08]
[1761940128431,4.30292653,3901.2,3901.1,1e-08]
[1761940129206,3.09354574,3901.2,3901.1,1.13320001]
[1761940129406,3.09354574,3901.2,3901.1,1e-08]
[1761940131422,3.09354574,3901.2,3901.1,0.46670001]
[1761940131925,3.09354574,3901.2,3901.1,1.13320001]
[1761940132441,3.80022366,3901.2,3901.1,1e-08]
[1761940132743,3.09354574,3901.2,3901.1,0.65120001]
[1761940132942,3.09354574,3901.2,3901.1,1.13320001]
[1761940133443,3.09354574,3901.2,3901.1,1.13520001]
[1761940133646,3.23454574,3901.2,3901.1,0.00200001]
[1761940133822,2.56344527,3901.0,3900.9,1e-08]
[1761940134247,2.56344527,3901.0,3900.9,0.46670001]
[1761940134544,0.128,3901.4,3900.9,0.94870001]
[1761940134748,0.128,3901.4,3901.3,0.4667]
[1761940134749,2.69118736,3901.4,3901.3,0.4667]
[1761940134956,2.69118736,3901.4,3901.3,1.1332]
[1761940134957,0.128,3901.4,3901.3,1.1332]
[1761940135122,2.56317296,3901.5,3901.3,1.1332]
[1761940135449,0.40306209,3901.8,3901.3,0.1845]
[1761940135450,2.56318244,3901.4,3901.3,0.1845]
[1761940135608,2.56316597,3901.5,3901.3,0.1845]
[1761940135815,0.001,3901.8,3901.5,0.4667]
[1761940136011,2.69193466,3901.8,3901.7,0.4667]
[1761940136443,4.24724199,3901.8,3900.9,1e-08]
[1761940136623,2.56344527,3901.0,3900.9,1e-08]
[1761940137005,2.56344527,3901.0,3900.9,0.94870001]
[1761940137943,3.17184527,3901.0,3900.9,1e-08]
[1761940138107,3.6188628,3901.0,3900.9,1e-08]
[1761940138309,3.1369628,3901.0,3900.9,1e-08]
[1761940139947,2.56333095,3901.2,3900.9,0.94870001]
[1761940140109,2.56331385,3901.2,3901.1,0.6512]
[1761940140506,0.001,3901.8,3901.1,1.1332]
[1761940140713,2.56298536,3901.7,3901.2,0.482]
[1761940140954,0.001,3901.8,3901.2,0.482]
[1761940141153,2.56324004,3901.4,3901.2,0.482]
[1761940141329,2.56322484,3901.4,3901.2,0.482]
[1761940141526,0.001,3901.8,3901.3,0.4667]
[1761940141841,2.56331385,3901.2,3901.1,0.1845]
[1761940142009,2.56331385,3901.2,3900.9,1e-08]
[1761940142010,2.56344527,3901.0,3900.9,1e-08]
[1761940142212,2.56464527,3901.0,3900.9,1e-08]
[1761940142443,3.04934527,3901.0,3900.9,1e-08]
[1761940142820,2.56464527,3901.0,3900.9,1e-08]
[1761940143423,2.56344527,3901.0,3900.9,1e-08]
[1761940143626,3.25108614,3901.0,3900.9,1e-08]
[1761940144042,3.12738614,3901.0,3900.9,1e-08]
[1761940146130,3.25108614,3901.0,3900.9,1e-08]
[1761940146466,3.73218614,3901.0,3900.9,1e-08]
[1761940146960,4.28544562,3901.0,3900.9,1e-08]
[1761940147253,8.79762962,3901.0,3900.9,1e-08]
[1761940147452,18.54947362,3901.0,3900.9,1e-08]
[1761940147828,14.83336362,3901.0,3900.9,1e-08]
[1761940148030,13.13539662,3901.0,3900.9,1e-08]
[1761940148355,11.01513762,3901.0,3900.9,1e-08]
[1761940148657,8.79762962,3901.0,3900.9,1e-08]
[1761940149417,8.39212562,3901.0,3900.9,1e-08]
[1761940149649,3.80434562,3901.0,3900.9,1e-08]
[1761940149821,3.25108614,3901.0,3900.9,1e-08]
[1761940150147,3.73218614,3901.0,3900.9,1e-08]
[1761940150541,3.25108614,3901.0,3900.9,1e-08]
[1761940151566,14.88225295,3901.0,3900.9,1e-08]
[1761940151772,12.30979095,3901.0,3900.9,1e-08]
[1761940151928,6.09051321,3901.0,3900.9,1e-08]
[1761940152129,12.88250721,3901.0,3900.9,1e-08]
[1761940152431,8.10249421,3901.0,3900.9,1e-08]
[1761940153426,8.31627021,3901.0,3900.9,1e-08]
[1761940153624,8.61768821,3901.0,3900.9,1e-08]
[1761940153828,9.01998842,3901.0,3900.9,1e-08]
[1761940154068,6.49281342,3901.0,3900.9,1e-08]
[1761940154839,6.09051321,3901.0,3900.9,1e-08]
[1761940155062,10.08526521,3901.0,3900.9,1e-08]
[1761940155230,6.09051321,3901.0,3900.9,1e-08]
[1761940155429,5.60941321,3901.0,3900.9,1e-08]
[1761940155971,3.68052921,3901.0,3900.9,1e-08]
[1761940156178,3.71798614,3901.0,3900.9,1e-08]
[1761940156693,4.27097322,3901.0,3900.9,1e-08]
[1761940156910,3.25458614,3901.0,3900.9,1e-08]
[1761940158361,3.72988614,3901.0,3900.9,1e-08]
[1761940158795,3.25458614,3901.0,3900.9,1e-08]
[1761940159456,5.12956614,3901.0,3900.9,1e-08]
[1761940159662,5.07999673,3901.0,3900.9,1e-08]
[1761940159880,5.48211371,3901.0,3900.9,1e-08]
[1761940161158,5.61511371,3901.0,3900.9,1e-08]
[1761940161600,6.08691371,3901.0,3900.9,1e-08]
[1761940161991,5.61511371,3901.0,3900.9,1e-08]
[1761940162299,6.08691371,3901.0,3900.9,1e-08]
[1761940163192,2.56397107,3900.2,3900.1,0.08620001]
[1761940163563,2.56397107,3900.2,3900.1,0.55830001]
[1761940163769,2.56429981,3899.7,3899.6,0.657]
[1761940164225,2.56429981,3899.7,3899.6,0.6598]
[1761940165020,2.56429981,3899.7,3899.6,1.1291]
[1761940167108,2.56429981,3899.7,3899.6,0.4721]
[1761940167432,3.07715199,3899.7,3899.6,0.4721]
[1761940167977,2.5644971,3899.4,3899.3,0.1812]
[1761940168245,2.56444329,3899.5,3899.3,0.6505]
[1761940168402,2.5644971,3899.4,3899.3,0.6505]
[1761940168604,2.5644971,3899.4,3899.3,0.1812]
[1761940168799,2.56376303,3900.6,3899.3,0.1812]
[1761940168800,2.56403364,3900.2,3899.3,0.6533]
[1761940169004,2.5638396,3900.4,3900.3,0.1812]
[1761940169432,2.5638396,3900.4,3900.3,1.1226]
[1761940169631,2.5638396,3900.4,3900.3,0.4721]
[1761940170230,2.5638396,3900.4,3899.3,0.1812]
[1761940170231,2.5640707,3900.1,3899.5,0.4693]
[1761940170606,2.5640707,3900.1,3900.0,0.4721]
[1761940170607,2.56403681,3900.1,3900.0,0.4721]
[1761940170936,0.51273379,3900.5,3899.3,0.1812]
[1761940171136,2.56442521,3899.6,3899.4,0.4693]
[1761940171326,2.56443133,3899.5,3899.4,0.4693]
[1761940171700,2.56443133,3899.5,3899.4,0.9414]
[1761940172737,2.56443133,3899.5,3899.4,0.4721]
[1761940173116,0.40217143,3900.2,3899.4,0.9414]
[1761940173349,0.40217143,3900.2,3899.6,0.4721]
[1761940173350,2.56429981,3899.7,3899.6,0.4721]
[1761940173533,0.128,3899.8,3899.5,0.4693]
[1761940173857,0.40217143,3900.2,3900.1,2.56403681]
[1761940174006,0.40217143,3900.2,3900.1,0.7813]
[1761940174201,0.40217143,3900.2,3900.1,3.81463681]
[1761940174926,0.005,3901.7,3900.2,2.56396381]
[1761940175127,2.56331431,3901.2,3900.8,0.4721]
[1761940175309,2.56351098,3900.9,3900.8,0.4721]
[1761940175510,2.56351098,3900.9,3900.7,0.128]
[1761940175715,2.56351098,3900.9,3900.8,0.4721]
[1761940176544,0.128,3901.4,3900.8,0.9414]
[1761940176764,2.56351098,3900.9,3900.8,0.4693]
[1761940176946,0.4722976,3901.4,3900.7,0.128]
[1761940176947,2.5635767,3900.8,3900.7,0.128]
[1761940177449,2.5635767,3900.8,3900.7,1.0694]
[1761940177634,2.5635767,3900.8,3900.7,0.4721]
[1761940177829,3.0762824,3900.8,3900.7,0.4721]
[1761940178651,2.5635767,3900.8,3900.7,0.9414]
[1761940179532,2.5635767,3900.8,3900.7,0.4721]
[1761940179931,2.56388423,3900.4,3900.1,0.6505]
[1761940180367,0.3442976,3901.4,3900.3,0.4721]
[1761940180661,2.56372051,3900.6,3900.5,0.4721]
[1761940181018,2.56372051,3900.6,3900.5,0.9414]
[1761940181218,2.56372051,3900.6,3900.5,0.4721]
[1761940182230,2.56357831,3900.8,3900.1,0.6505]
[1761940182528,2.56357831,3900.8,3900.1,0.1812]
[1761940182529,2.56397107,3900.2,3900.1,0.1812]
[1761940182920,2.56397107,3900.2,3900.1,0.6533]
[1761940183156,2.56397107,3900.2,3900.1,0.4721]
[1761940183888,2.56397107,3900.2,3900.1,0.4741]
[1761940184086,3.07675714,3900.2,3900.1,0.002]
[1761940184272,3.34415714,3900.2,3900.1,0.002]
[1761940184650,3.07675714,3900.2,3900.1,0.6553]
[1761940184883,2.56397107,3900.2,3900.1,1.1246]
[1761940185086,2.56397107,3900.2,3900.1,0.4741]
[1761940185283,2.56397107,3900.2,3900.1,0.002]
[1761940185497,2.56397107,3900.2,3900.1,0.4741]
[1761940185648,3.07675714,3900.2,3900.1,0.4741]
[1761940186668,3.07675714,3900.2,3900.1,1.1273]
[1761940187085,3.07675714,3900.2,3900.1,0.4741]
[1761940187287,3.36655714,3900.2,3900.1,0.002]
[1761940187789,3.36655714,3900.2,3900.1,1.1386]
[1761940187790,3.20475714,3900.2,3900.1,1.1386]
[1761940187992,2.69197107,3900.2,3900.1,1.1386]
[1761940188196,2.98177107,3900.2,3900.1,0.002]
[1761940188687,2.69197107,3900.2,3900.1,0.002]
[1761940188992,3.21755714,3900.2,3900.1,0.4854]
[1761940189597,3.50735714,3900.2,3900.1,0.002]
[1761940189892,2.56423406,3899.8,3899.7,0.002]
[1761940190095,3.08157282,3899.8,3899.7,0.002]
[1761940190298,3.53417282,3899.8,3899.7,0.002]
[1761940190861,3.07707282,3899.8,3899.7,0.4854]
[1761940192167,3.07707282,3899.8,3899.7,0.942]
[1761940193566,2.56377387,3900.5,3899.7,0.942]